bitfinex-derivatives/quotes_SOLF0:USTF0_20250923
["timestamp","ask_amount","ask_price","bid_price","bid_amount"]
[1758604519282,64.5984,216.55,216.41,7.53]
[1758604519476,7.1,216.54,216.41,7.53]
[1758604520472,7.1,216.5,216.41,7.53]
[1758604520870,198.8644257,216.66,216.41,7.53]
[1758604520871,7.1,216.57,216.41,7.53]
[1758604521068,7.1,216.57,216.41,72.1679]
[1758604521270,4.1518,216.6,216.41,72.1679]
[1758604521271,4.1518,216.6,216.44,7.67]
[1758604521482,4.1518,216.6,216.45,7.67]
[1758604521776,4.1521,216.58,216.45,7.67]
[1758604523381,4.1521,216.58,216.45,11.8245]
[1758604523577,7.1,216.6,216.45,4.1545]
[1758604523781,7.1,216.6,216.46,7.67]
[1758604524779,64.5856,216.59,216.46,7.67]
[1758604525078,7.1,216.58,216.46,7.67]
[1758604526196,4.1518,216.6,216.47,7.67]
[1758604526381,7.1,216.62,216.47,7.67]
[1758604527287,64.5966,216.56,216.43,3.85146239]
[1758604527487,7.1,216.53,216.4,11.52146239]
[1758604527681,7.1,216.53,216.4,7.67]
[1758604528381,4.1535,216.51,216.4,7.67]
[1758604529384,7.1,216.49,216.36,7.67]
[1758604529582,7.1,216.47,216.36,7.67]
[1758604530986,4.1547,216.45,216.36,7.67]
[1758604532485,4.155,216.43,216.36,7.67]
[1758604532680,7.18,216.42,216.29,7.2]
[1758604533388,4.1557,216.39,216.29,7.2]
[1758604533582,7.18,216.42,216.29,7.2]
[1758604533781,4.1547,216.45,216.33,7.2]
[1758604533987,7.18,216.47,216.33,7.2]
[1758604534482,7.18,216.47,216.35,7.2]
[1758604534690,74.72035529,216.53,216.35,7.2]
[1758604534890,127.54,216.52,216.35,7.2]
[1758604535290,4.1535,216.51,216.39,7.2]
[1758604535690,127.54,216.52,216.39,7.2]
[1758604535892,7.18,216.46,216.35,7.2]
[1758604537389,7.18,216.46,216.35,11.3564]
[1758604537589,7.18,216.46,216.35,7.2]
[1758604539596,64.5881,216.59,216.35,71.855]
[1758604539895,64.5881,216.59,216.36,7.2]
[1758604539896,127.54,216.54,216.36,7.2]
[1758604540291,4.1535,216.51,216.38,4.1559]
[1758604540491,7.18,216.5,216.39,7.2]
[1758604541298,4.1538,216.49,216.39,7.2]
[1758604541496,7.18,216.5,216.39,7.2]
[1758604542889,7.18,216.5,216.39,11.3557]
[1758604543289,4.1528,216.55,216.43,4.1549]
[1758604543493,11.3328,216.55,216.44,7.2]
[1758604543891,4.1531,216.53,216.44,7.2]
[1758604544100,7.18,216.55,216.44,7.2]
[1758604546197,7.18,216.55,216.45,4.1545]
[1758604546600,7.18,216.55,216.41,3.81960913]
[1758604546797,7.18,216.55,216.4,7.2]
[1758604547499,64.5952,216.56,216.4,7.2]
[1758604547500,7.18,216.52,216.4,7.2]
[1758604548596,13.15646777,216.52,216.4,7.2]
[1758604548791,4.1539,216.49,216.4,7.2]
[1758604549295,13.15646777,216.52,216.4,7.2]
[1758604549693,4.1536,216.5,216.4,7.2]
[1758604550301,4.154,216.48,216.4,7.2]
[1758604550997,4.154,216.48,216.36,3.81960913]
[1758604551199,7.18,216.47,216.36,3.81960913]
[1758604551391,4.1544,216.46,216.36,3.81960913]
[1758604551592,4.1544,216.46,216.35,11.01960913]
[1758604553797,7.18,216.47,216.35,15.17590913]
[1758604554103,7.18,216.47,216.36,7.2]
[1758604556598,7.18,216.43,216.34,3.81960913]
[1758604556799,7.18,216.43,216.31,15.17670913]
[1758604557202,11.3351,216.43,216.31,15.17670913]
[1758604560609,7.59,216.48,216.35,64.6568]
[1758604560804,7.59,216.48,216.36,7.27]
[1758604561399,7.59,216.48,216.38,4.1559]
[1758604562206,7.59,216.48,216.36,7.27]
[1758604563713,7.59,216.46,216.32,11.08960913]
[1758604563910,7.59,216.41,216.32,7.27]
[1758604564903,4.1555,216.4,216.32,7.27]
[1758604565507,7.59,216.41,216.32,7.27]
[1758604567208,64.6463,216.39,216.27,3.81960913]
[1758604567510,11.7463,216.37,216.26,7.27]
[1758604567712,7.59,216.37,216.26,7.27]
[1758604568512,7.59,216.37,216.26,11.4282]
[1758604569012,7.59,216.37,216.28,4.1578]
[1758604571108,11.7461,216.37,216.26,7.27]
[1758604571308,7.59,216.37,216.26,7.27]
[1758604571805,7.59,216.37,216.27,4.158]
[1758604572004,7.59,216.42,216.29,64.6748]
[1758604572208,7.59,216.42,216.3,7.27]
[1758604573304,5.97646777,216.41,216.28,3.81960913]
[1758604573504,5.97646777,216.41,216.25,11.08960913]
[1758604573709,7.59,216.4,216.3,4.1574]
[1758604573908,7.59,216.4,216.28,7.27]
[1758604574103,7.59,216.4,216.3,7.27]
[1758604574513,7.59,216.4,216.32,4.157]
[1758604574707,7.59,216.4,216.3,7.27]
[1758604575014,7.59,216.44,216.32,7.27]
[1758604575815,72.2208,216.44,216.28,7.27]
[1758604576909,11.7457,216.39,216.3,4.1574]
[1758604577305,7.59,216.39,216.32,4.157]
[1758604577813,7.59,216.39,216.28,11.08960913]
[1758604578012,7.59,216.39,216.28,11.4277]
[1758604578210,64.6394,216.41,216.28,11.4277]
[1758604578411,72.4327,216.4,216.28,7.27]
[1758604578608,7.79,216.4,216.28,7.27]
[1758604579923,4.1561,216.38,216.28,7.27]
[1758604580121,7.79,216.4,216.28,7.27]
[1758604580520,72.4412,216.37,216.25,3.81960913]
[1758604580717,72.4412,216.37,216.24,7.97810913]
[1758604581120,7.79,216.37,216.26,4.1582]
[1758604581321,7.79,216.37,216.27,7.11]
[1758604582327,7.79,216.42,216.28,10.92960913]
[1758604582728,4.1553,216.41,216.31,4.1572]
[1758604583830,72.4263,216.42,216.29,7.11]
[1758604584034,64.6395,216.41,216.29,7.11]
[1758604584328,7.79,216.4,216.29,7.11]
[1758604585428,11.9463,216.36,216.25,4.1582]
[1758604585632,11.9463,216.36,216.24,10.92960913]
[1758604585633,7.79,216.36,216.24,10.92960913]
[1758604586035,7.79,216.36,216.27,7.11]
[1758604587835,4.1569,216.33,216.27,7.11]
[1758604588739,72.4543,216.33,216.23,7.11]
[1758604589240,7.79,216.33,216.23,7.11]
[1758604589743,4.1573,216.31,216.23,7.11]
[1758604590435,4.1577,216.29,216.23,7.11]
[1758604592937,4.1577,216.29,216.19,7.33]
[1758604593340,64.6753,216.29,216.19,7.33]
[1758604593636,7.72,216.28,216.19,7.33]
[1758604594636,10.18355669,216.28,216.19,7.33]
[1758604594840,7.72,216.24,216.16,2.46355669]
[1758604595041,10.18355669,216.24,216.16,2.46355669]
[1758604595941,7.72,216.24,216.16,2.46355669]
[1758604596539,7.72,216.24,216.14,11.4904]
[1758604597143,7.72,216.24,216.14,7.33]
[1758604598241,4.1588,216.23,216.14,7.33]
[1758604598553,7.72,216.22,216.1,7.33]
[1758604599048,115.12,216.3,216.16,7.33]
[1758604599049,7.72,216.3,216.16,7.33]
[1758604599940,21.33602856,216.3,216.16,7.33]
[1758604600445,21.33602856,216.3,216.19,7.33]
[1758604601737,21.33602856,216.3,216.2,4.1593]
[1758604602149,120.2,216.34,216.2,64.7017]
[1758604602351,127.92,216.34,216.21,7.33]
[1758604602848,127.92,216.34,216.21,11.489]
[1758604603238,127.92,216.34,216.21,7.33]
[1758604603444,7.72,216.34,216.22,7.33]
[1758604604245,4.1569,216.33,216.22,11.4888]
[1758604604445,7.72,216.32,216.22,7.33]
[1758604605140,7.72,216.32,216.13,5.14455247]
[1758604605141,7.72,216.28,216.17,7.33]
[1758604606747,4.1582,216.26,216.17,7.33]
[1758604607345,7.72,216.28,216.17,7.33]
[1758604607548,79.76,216.33,216.17,7.33]
[1758604607743,79.76,216.33,216.18,64.7079]
[1758604607948,7.72,216.33,216.24,7.33]
[1758604608651,7.72,216.33,216.25,4.1584]
[1758604611458,7.72,216.33,216.24,7.33]
[1758604611762,7.72,216.33,216.21,4.159]
[1758604612059,7.72,216.33,216.22,7.33]
[1758604612852,4.1571,216.32,216.22,7.33]
[1758604615761,7.72,216.31,216.22,7.33]
[1758604616073,14.18154885,216.34,216.22,7.33]
[1758604616074,7.72,216.29,216.22,7.33]
[1758604616565,7.72,216.29,216.18,4.1596]
[1758604616566,7.72,216.29,216.19,7.33]
[1758604617764,11.8778,216.29,216.19,7.33]
[1758604617963,7.72,216.29,216.19,7.33]
[1758604618363,7.72,216.25,216.15,11.4902]
[1758604619665,11.8786,216.25,216.15,11.4902]
[1758604620169,11.8786,216.25,216.15,7.33]
[1758604620366,4.1588,216.23,216.15,7.33]
[1758604621555,7.72,216.25,216.15,7.33]
[1758604621762,7.16,216.29,216.16,3.84967076]
[1758604621959,134.22154885,216.34,216.17,7.07]
[1758604622158,7.16,216.33,216.2,7.07]
[1758604623165,7.16,216.33,216.21,7.07]
[1758604623566,4.1573,216.31,216.21,7.07]
[1758604623765,3.67488263,216.3,216.21,7.07]
[1758604623970,71.8245,216.33,216.17,7.07]
[1758604623971,10.83488263,216.29,216.17,7.07]
[1758604624166,3.67488263,216.28,216.17,4.1597]
[1758604624372,3.67488263,216.28,216.18,7.07]
[1758604625871,7.16,216.27,216.18,7.07]
[1758604626168,3.67488263,216.26,216.18,7.07]
[1758604627372,7.16,216.24,216.13,3.81960913]
[1758604627570,3.67842311,216.23,216.12,10.88960913]
[1758604628272,3.67842311,216.23,216.13,3.81960913]
[1758604628973,7.83722311,216.23,216.13,7.98030913]
[1758604629174,3.68098593,216.22,216.13,4.1607]
[1758604629374,3.68098593,216.21,216.13,4.1607]
[1758604629561,7.16,216.24,216.16,7.07]
[1758604629870,3.68043683,216.23,216.16,7.07]
[1758604630070,3.68043683,216.22,216.16,7.07]
[1758604630267,3.68043683,216.21,216.14,7.07]
[1758604630462,7.16,216.24,216.14,7.07]
[1758604630769,3.68096989,216.23,216.14,7.07]
[1758604630972,3.68096989,216.23,216.1,5.14455247]
[1758604630973,3.68096989,216.22,216.11,3.81960913]
[1758604631167,10.84096989,216.21,216.11,3.81960913]
[1758604631367,3.68096989,216.2,216.1,10.88960913]
[1758604631570,7.16,216.19,216.1,10.88960913]
[1758604631769,3.68096989,216.18,216.08,3.81960913]
[1758604632074,3.68096989,216.18,216.06,349.42]
[1758604632075,7.16,216.17,216.06,3.81960913]
[1758604632276,3.68096989,216.16,216.06,3.81960913]
[1758604632663,7.16,216.14,216.05,3.81960913]
[1758604632866,3.68055695,216.13,216.03,3.81960913]
[1758604633065,7.16,216.14,216.03,3.81960913]
[1758604633272,4.161,216.12,216.02,3.81960913]
[1758604633875,3.67925226,216.11,216.01,7.07]
[1758604634077,14.14540322,216.13,216.01,7.07]
[1758604634277,7.16,216.14,216.01,11.2329]
[1758604634278,3.67948954,216.12,216.01,11.2329]
[1758604634571,7.16,216.16,216.01,7.07]
[1758604634774,7.16,216.14,216.01,7.07]
[1758604634983,3.67657605,216.13,216.01,7.07]
[1758604635372,7.16,216.12,215.98,3.81960913]
[1758604635580,7.16,216.1,215.98,3.81960913]
[1758604635781,7.16,216.1,215.97,10.88960913]
[1758604635981,7.16,216.1,215.97,7.07]
[1758604636881,4.1617,216.08,215.97,11.2338]
[1758604637083,7.16,216.1,215.98,64.7675]
[1758604637284,70.06,216.15,215.99,7.41]
[1758604637480,7.54,216.15,216.03,7.41]
[1758604638183,11.7004,216.15,216.03,7.41]
[1758604639582,7.54,216.12,216.03,7.41]
[1758604640687,7.54,216.18,216.06,7.41]
[1758604641679,414.2662,216.26,216.11,7.41]
[1758604641680,21.54090758,216.22,216.11,7.41]
[1758604641885,7.54,216.22,216.11,7.41]
[1758604642578,7.54,216.22,216.12,4.1609]
[1758604643480,367.90027884,216.26,216.15,7.41]
[1758604643780,3.66413634,216.25,216.15,7.41]
[1758604643981,3.66413634,216.24,216.15,7.41]
[1758604644184,4.1587,216.24,216.15,7.41]
[1758604644480,64.696,216.22,216.07,7.41]
[1758604644688,11.204883,216.21,216.07,7.41]
[1758604644881,4.1595,216.2,216.09,7.41]
[1758604645680,4.1595,216.2,216.09,11.5714]
[1758604647692,7.54,216.21,216.12,7.41]
[1758604647988,7.54,216.25,216.12,7.41]
[1758604648190,3.66406037,216.24,216.12,7.41]
[1758604648385,3.66406037,216.24,216.13,4.1607]
[1758604648386,7.82294466,216.24,216.13,4.1607]
[1758604648584,4.1586,216.24,216.13,4.1607]
[1758604649490,7.54,216.21,216.12,7.41]
[1758604650290,7.54,216.21,216.12,11.5709]
[1758604653984,4.1586,216.25,216.12,11.5709]
[1758604654185,11.51041791,216.24,216.12,11.5709]
[1758604654395,3.70041791,216.23,216.12,11.5709]
[1758604654598,4.1592,216.21,216.12,7.41]
[1758604655299,7.81,216.2,216.12,7.41]
[1758604657502,4.1597,216.19,216.12,7.41]
[1758604658192,4.1597,216.19,216.08,11.8116]
[1758604658494,11.51477471,216.18,216.08,11.8116]
[1758604658694,3.70477471,216.17,216.08,11.8116]
[1758604662588,7.86477471,216.17,216.08,11.8116]
[1758604662791,4.16,216.17,216.08,11.8116]
[1758604663298,3.70787078,216.16,216.08,11.8116]
[1758604663500,4.16,216.17,216.08,11.8116]
[1758604663699,3.70801347,216.16,216.08,11.8116]
[1758604663902,7.81,216.18,216.08,11.8116]
[1758604664097,3.70801347,216.17,216.04,64.7495]
[1758604664305,7.81,216.22,216.1,7.65]
[1758604664499,3.70767795,216.21,216.1,7.65]
[1758604664796,3.70767795,216.2,216.1,7.65]
[1758604664992,7.81,216.22,216.13,11.8107]
[1758604665194,3.70759528,216.21,216.13,11.8107]
[1758604665398,3.70759528,216.2,216.13,11.8107]
[1758604665593,7.81,216.22,216.13,11.8107]
[1758604665799,3.70772246,216.21,216.13,11.8107]
[1758604666102,3.70772246,216.2,216.13,7.65]
[1758604666302,3.70772246,216.19,216.13,7.65]
[1758604666500,7.81,216.22,216.13,7.65]
[1758604666700,3.70828577,216.21,216.13,7.65]
[1758604666901,3.70828577,216.2,216.13,7.65]
[1758604667100,11.969,216.22,216.13,7.65]
[1758604667101,3.70828577,216.19,216.13,7.65]
[1758604667300,3.70979839,216.18,216.13,7.65]
[1758604667498,11.969,216.22,216.13,7.65]
[1758604667698,3.70979839,216.21,216.13,7.65]
[1758604668003,3.70979839,216.21,216.09,7.65]
[1758604668004,11.51979839,216.2,216.09,7.65]
[1758604668204,3.70979839,216.19,216.09,7.65]
[1758604668602,2.46579361,216.17,216.09,7.65]
[1758604670304,3.71354985,216.16,216.09,7.65]
[1758604670503,2.46579361,216.17,216.09,7.65]
[1758604670695,3.71376637,216.16,216.09,7.65]
[1758604670898,2.46579361,216.13,216.09,7.65]
[1758604671304,10.27579361,216.13,216.09,7.65]
[1758604671705,10.27579361,216.13,216.05,6.62799361]
[1758604671903,10.27579361,216.13,216.05,14.27799361]
[1758604672810,2.46579361,216.11,216.05,7.65]
[1758604674412,10.27579361,216.13,216.05,7.65]
[1758604674612,3.71610566,216.12,216.05,7.65]
[1758604674809,3.71610566,216.11,216.05,7.65]
[1758604675110,10.27579361,216.13,216.05,7.65]
[1758604675310,3.71610566,216.12,216.05,7.65]
[1758604675608,3.71610566,216.11,216.05,7.65]
[1758604675809,10.27579361,216.13,216.05,7.65]
[1758604676010,3.71618438,216.12,216.05,7.65]
[1758604676204,3.71618438,216.11,216.05,7.65]
[1758604676408,10.27579361,216.13,216.05,7.65]
[1758604676608,3.71608063,216.12,216.05,7.65]
[1758604676813,3.71608063,216.11,216.05,7.65]
[1758604677009,10.27579361,216.13,216.05,7.65]
[1758604677208,3.71608063,216.12,216.05,7.65]
[1758604677406,3.71608063,216.11,216.05,7.65]
[1758604677610,10.27579361,216.13,216.05,7.65]
[1758604677911,3.71585006,216.12,216.05,7.65]
[1758604678214,13.99164367,216.11,216.02,7.65]
[1758604678510,2.46579361,216.09,216.02,7.65]
[1758604679909,3.71564365,216.08,216.02,7.65]
[1758604680110,2.46579361,216.09,216.02,7.65]
[1758604680316,3.7156413,216.08,216.02,7.65]
[1758604680613,2.46579361,216.09,216.02,7.65]
[1758604680814,3.71593293,216.08,216.02,7.65]
[1758604681015,2.46579361,216.09,216.02,7.65]
[1758604681206,3.71593293,216.08,216.02,7.65]
[1758604681415,2.46579361,216.09,216.02,7.65]
[1758604681614,3.71602252,216.08,216.02,7.65]
[1758604681810,6.62739361,216.09,216.02,7.65]
[1758604682015,3.71602252,216.08,216.02,7.65]
[1758604682214,6.62739361,216.09,216.02,7.65]
[1758604682410,3.71533214,216.08,216.02,7.65]
[1758604682609,6.62739361,216.09,216.02,7.65]
[1758604682808,3.71555014,216.08,216.02,7.65]
[1758604683017,6.62739361,216.09,216.02,7.65]
[1758604683214,3.71555014,216.08,216.02,7.65]
[1758604683415,6.62739361,216.09,216.02,7.65]
[1758604684014,3.6734531,216.08,216.02,7.65]
[1758604684216,6.62739361,216.09,216.02,7.65]
[1758604686120,2.46579361,216.07,215.99,13.97899361]
[1758604686521,2.46579361,216.07,215.99,7.35]
[1758604686722,2.46579361,216.05,215.99,7.35]
[1758604686922,9.62579361,216.05,215.99,7.35]
[1758604688020,7.16,216.15,216.01,2.46579361]
[1758604688218,0.51137018,216.2,216.01,2.46579361]
[1758604688219,7.16,216.13,216.05,2.46579361]
[1758604689224,7.16,216.17,216.08,7.35]
[1758604689523,3.66935995,216.16,216.09,2.46579361]
[1758604689725,7.16,216.17,216.09,2.46579361]
[1758604689926,3.6690709,216.16,216.09,2.46579361]
[1758604690122,7.16,216.17,216.09,2.46579361]
[1758604690425,3.6693128,216.16,216.09,6.62709361]
[1758604690621,7.16,216.17,216.09,6.62709361]
[1758604690828,3.66919775,216.16,216.09,6.62709361]
[1758604691125,6.62599361,216.16,216.08,7.35]
[1758604691326,2.46579361,216.12,216.04,7.35]
[1758604691924,3.67045783,216.11,216.04,7.35]
[1758604692124,2.46579361,216.12,216.04,7.35]
[1758604692324,3.6704826,216.11,216.04,7.35]
[1758604692525,2.46579361,216.12,216.04,7.35]
[1758604692728,3.67036617,216.11,216.04,7.35]
[1758604693023,2.46579361,216.12,216.04,7.35]
[1758604693223,3.67041017,216.11,216.04,7.35]
[1758604693528,6.13683864,216.1,216.04,7.35]
[1758604693728,3.67104503,216.09,216.04,7.35]
[1758604694126,3.67104503,216.09,216.02,7.35]
[1758604694331,2.46579361,216.1,216.02,7.35]
[1758604695026,3.67127854,216.09,216.02,7.35]
[1758604695228,2.46579361,216.1,216.02,11.5127]
[1758604695427,3.67137488,216.09,216.02,7.35]
[1758604695626,2.46579361,216.1,216.02,7.35]
[1758604695825,3.67137488,216.09,216.02,7.35]
[1758604696028,2.46579361,216.1,216.02,7.35]
[1758604696229,7.83287488,216.09,216.02,7.35]
[1758604696425,3.67137488,216.08,216.02,7.35]
[1758604696630,4.1615,216.09,216.02,7.35]
[1758604697020,4.1619,216.07,216.02,7.35]
[1758604697226,7.15,216.06,215.99,2.46579361]
[1758604697421,7.15,216.06,215.97,7.12]
[1758604697627,7.15,216.06,215.98,2.46579361]
[1758604698633,7.83537177,216.05,215.97,7.12]
[1758604698829,9.61579361,216.06,215.97,9.58579361]
[1758604698830,7.15,216.06,215.97,9.58579361]
[1758604699026,2.46579361,216.08,216.0,7.12]
[1758604699231,3.67278358,216.07,216.0,7.12]
[1758604699431,11.3114,216.1,216.02,7.12]
[1758604699634,3.67251158,216.09,216.03,2.46579361]
[1758604699832,7.15,216.1,216.04,7.12]
[1758604700028,3.67222039,216.09,216.03,9.58579361]
[1758604700236,7.15,216.1,216.03,9.58579361]
[1758604700536,3.67268085,216.09,216.03,9.58579361]
[1758604700734,7.15,216.1,216.03,9.58579361]
[1758604700927,3.67268232,216.09,216.03,9.58579361]
[1758604701133,7.15,216.1,216.03,9.58579361]
[1758604701434,3.67265421,216.09,216.03,7.12]
[1758604701629,7.15,216.1,216.03,7.12]
[1758604701829,3.67315922,216.09,216.03,7.12]
[1758604702030,3.67316794,216.08,216.03,7.12]
[1758604702325,13.77709361,216.1,216.03,7.12]
[1758604702534,2.46579361,216.08,216.03,7.12]
[1758604702734,10.82372717,216.07,216.03,7.12]
[1758604702937,7.15,216.07,216.03,7.12]
[1758604703831,6.62709361,216.1,216.01,7.12]
[1758604704035,3.67383162,216.09,216.01,9.58579361]
[1758604704232,3.67383162,216.08,216.01,9.58579361]
[1758604704434,6.62709361,216.1,216.01,9.58579361]
[1758604704736,3.67385757,216.09,216.01,9.58579361]
[1758604704933,3.67385757,216.08,216.01,9.58579361]
[1758604705233,6.62709361,216.1,216.01,9.58579361]
[1758604705533,3.67392125,216.09,216.01,9.58579361]
[1758604705726,3.67392125,216.08,216.01,9.58579361]
[1758604705926,2.46579361,216.1,216.01,9.58579361]
[1758604706135,3.67392358,216.09,216.01,9.58579361]
[1758604706336,3.67392358,216.08,216.01,9.58579361]
[1758604706535,2.46579361,216.1,216.01,9.58579361]
[1758604706735,3.67401818,216.09,216.01,9.58579361]
[1758604706936,3.67401818,216.08,216.01,9.58579361]
[1758604707133,2.46579361,216.1,216.01,9.58579361]
[1758604707333,3.6740894,216.09,216.04,7.12]
[1758604707526,7.15,216.11,216.04,7.12]
[1758604707730,3.67412653,216.1,216.04,7.12]
[1758604708038,7.15,216.11,216.04,7.12]
[1758604708337,2.46579361,216.08,215.99,13.74909361]
[1758604708538,3.67379646,216.07,215.99,13.74909361]
[1758604709838,3.67379646,216.07,216.0,7.12]
[1758604710033,7.15,216.08,216.0,7.12]
[1758604710337,3.67506022,216.07,216.0,9.58579361]
[1758604710536,7.15,216.08,216.0,9.58579361]
[1758604710836,3.6761167,216.07,216.0,7.12]
[1758604711035,7.15,216.08,216.0,7.12]
[1758604711237,3.67611904,216.07,216.0,7.12]
[1758604711432,3.67611904,216.06,216.0,7.12]
[1758604711638,7.15,216.08,216.0,7.12]
[1758604711835,3.67694677,216.07,216.0,7.12]
[1758604712036,3.67694677,216.06,216.0,7.12]
[1758604712233,7.15,216.08,216.0,9.58579361]
[1758604712439,3.67793226,216.07,216.0,9.58579361]
[1758604712739,2.46579361,216.1,216.02,7.1]
[1758604712940,3.67764593,216.09,216.02,7.1]
[1758604713132,3.67764593,216.08,216.02,7.1]
[1758604713328,3.67764593,216.07,216.01,6.62879361]
[1758604713529,2.46579361,216.1,216.02,7.1]
[1758604713733,3.67475538,216.09,216.02,7.1]
[1758604713937,3.67475538,216.08,216.05,2.46579361]
[1758604714141,2.46579361,216.15,216.06,7.1]
[1758604714340,7.83606714,216.14,216.06,7.1]
[1758604714538,3.67536714,216.13,216.06,7.1]
[1758604714739,3.67536714,216.12,216.06,7.1]
[1758604714936,3.67536714,216.11,216.05,2.46579361]
[1758604715143,3.67536714,216.1,216.05,2.46579361]
[1758604715338,4.1607,216.14,216.06,7.1]
[1758604715641,3.67621826,216.13,216.06,7.1]
[1758604715837,4.1607,216.14,216.06,7.1]
[1758604715838,3.67621826,216.12,216.06,11.2621]
[1758604716039,3.67621826,216.11,216.08,7.1]
[1758604716235,10.24579361,216.16,216.08,7.1]
[1758604716437,3.67652703,216.15,216.08,7.1]
[1758604716742,3.67652703,216.14,216.08,7.1]
[1758604717848,2.46579361,216.12,216.03,7.1]
[1758604718144,3.67652703,216.11,216.04,2.46579361]
[1758604718641,3.67652703,216.1,216.04,2.46579361]
[1758604718937,3.67652703,216.09,216.04,2.46579361]
[1758604719138,7.78,216.13,216.05,7.1]
[1758604719338,3.67724581,216.12,216.05,7.1]
[1758604719532,3.67724581,216.11,216.05,7.1]
[1758604719734,13.92303942,216.1,216.0,13.72889361]
[1758604719933,3.67724581,216.09,216.01,7.1]
[1758604720737,3.67724581,216.09,216.04,2.46579361]
[1758604720939,10.24579361,216.14,216.05,7.1]
[1758604721139,10.24579361,216.14,216.07,7.1]
[1758604721140,3.67747216,216.13,216.07,7.1]
[1758604721340,3.67747216,216.12,216.06,9.56579361]
[1758604721542,3.67747216,216.11,216.06,2.46579361]
[1758604721733,3.67747216,216.1,216.07,7.1]
[1758604721938,14.40629361,216.14,216.06,9.56579361]
[1758604722141,3.67753102,216.13,216.06,9.56579361]
[1758604722340,3.67753102,216.12,216.06,9.56579361]
[1758604722541,3.67753102,216.11,216.06,2.46579361]
[1758604722743,3.67753102,216.1,216.06,2.46579361]
[1758604722941,11.9405,216.14,216.07,7.1]
[1758604723140,3.67763292,216.13,216.07,7.1]
[1758604723340,3.67763292,216.12,216.06,9.56579361]
[1758604723541,3.67763292,216.11,216.05,6.62789361]
[1758604723738,3.67763292,216.1,216.05,6.62789361]
[1758604723942,11.9405,216.14,216.06,7.1]
[1758604724144,3.67754239,216.13,216.06,7.1]
[1758604724443,3.67754239,216.12,216.06,7.1]
[1758604724645,3.67754239,216.11,216.05,6.62789361]
[1758604724841,3.67754239,216.1,216.06,7.1]
[1758604725042,34.1605,216.14,216.06,7.1]
[1758604725248,3.67741343,216.13,216.06,7.1]
[1758604725547,3.67741343,216.12,216.06,7.1]
[1758604725848,3.67741343,216.11,216.06,7.1]
[1758604726040,3.67741343,216.1,216.06,7.1]
[1758604726240,2.46579361,216.13,216.05,7.1]
[1758604726444,3.67732524,216.12,216.05,7.1]
[1758604726646,3.67732524,216.11,216.06,7.1]
[1758604726845,22.22,216.14,216.08,7.1]
[1758604727040,3.67673033,216.13,216.11,7.1]
[1758604727347,22.22,216.14,216.11,7.1]
[1758604727649,22.22,216.14,216.1,7.1]
[1758604727950,22.22,216.14,216.06,7.1]
[1758604728541,7.78,216.12,216.06,7.1]
[1758604728739,2.46579361,216.11,216.06,7.1]
[1758604728950,7.78,216.1,216.01,9.56579361]
[1758604729146,7.78,216.1,216.02,4.1627]
[1758604731251,7.78,216.1,216.01,7.1]
[1758604731252,7.78,216.1,216.04,4.1624]
[1758604736050,7.78,216.1,216.05,4.1621]